bitfinex/quotes_SOLUSD_20251030
["timestamp","ask_amount","ask_price","bid_price","bid_amount"]
[1761783716003,3.84111609,194.38,194.34,20.592]
[1761783716216,0.66,194.38,194.34,20.592]
[1761783716423,0.66,194.38,194.34,24.49311609]
[1761783716616,0.66,194.38,194.34,23.77311609]
[1761783716817,5.80457589,194.38,194.34,23.77311609]
[1761783717422,0.66,194.38,194.34,23.77311609]
[1761783717606,0.66,194.37,194.34,23.77311609]
[1761783718017,0.66,194.37,194.34,28.91873041]
[1761783718322,0.66,194.39,194.35,3.90111609]
[1761783718625,0.66,194.39,194.35,3.18111609]
[1761783719127,0.2,194.4,194.38,9.78882769]
[1761783719333,0.2,194.4,194.39,12.96994378]
[1761783719504,0.2,194.4,194.39,13.68994378]
[1761783720110,0.2,194.4,194.39,13.83210535]
[1761783720302,0.2,194.4,194.39,9.78882769]
[1761783720508,0.2,194.4,194.39,12.96994378]
[1761783720720,0.2,194.4,194.38,20.592]
[1761783721063,0.2,194.4,194.35,5.28725351]
[1761783721064,0.86,194.4,194.36,20.592]
[1761783721335,0.2,194.4,194.38,2.03566471]
[1761783721642,0.2,194.4,194.39,2.03566471]
[1761783721999,0.2,194.4,194.39,23.34766471]
[1761783722826,0.2,194.4,194.39,22.62766471]
[1761783723033,0.2,194.4,194.39,23.34766471]
[1761783723332,0.2,194.4,194.39,38.28078994]
[1761783723626,0.2,194.4,194.39,38.42295151]
[1761783724529,0.2,194.4,194.39,36.3872868]
[1761783724712,0.2,194.4,194.39,38.42295151]
[1761783727430,0.2,194.4,194.39,40.45861622]
[1761783728834,1e-08,194.4,194.39,40.45861622]
[1761783729034,0.1,194.44,194.43,30.52298926]
[1761783729344,0.1,194.44,194.43,33.27865397]
[1761783729962,0.1,194.44,194.43,33.79297789]
[1761783730845,0.1,194.44,194.43,36.18055239]
[1761783731169,0.1,194.44,194.43,35.66622847]
[1761783731351,0.1,194.44,194.43,38.42189318]
[1761783732068,0.1,194.44,194.43,36.38622847]
[1761783732235,0.1,194.44,194.43,38.9362171]
[1761783734167,0.1,194.44,194.43,29.14738941]
[1761783734945,0.1,194.44,194.43,38.9362171]
[1761783735181,0.1,194.44,194.43,35.66622847]
[1761783735341,0.1,194.44,194.43,37.55973161]
[1761783736375,0.1,194.44,194.43,37.70189318]
[1761783737072,0.1,194.44,194.43,14.9320669]
[1761783737073,0.82,194.44,194.43,14.9320669]
[1761783737575,0.82,194.44,194.36,5.14509158]
[1761783737576,7.9986394,194.44,194.36,5.14509158]
[1761783737756,5.96297469,194.44,194.36,7.18075629]
[1761783737961,2.03566471,194.42,194.4,20.592]
[1761783738342,0.72,194.41,194.4,20.592]
[1761783739074,0.72,194.41,194.27,25.73714391]
[1761783739075,7.89954859,194.41,194.34,16.97011347]
[1761783739280,7.89954859,194.41,194.36,30.38082769]
[1761783739281,0.72,194.4,194.36,30.38082769]
[1761783739484,2.75566471,194.4,194.36,9.78882769]
[1761783739654,2.03566471,194.38,194.34,9.78882769]
[1761783740057,0.72,194.37,194.34,9.78882769]
[1761783740255,0.72,194.37,194.36,20.592]
[1761783740452,0.72,194.37,194.33,9.78882769]
[1761783740659,0.72,194.37,194.33,30.38082769]
[1761783740856,0.72,194.37,194.33,32.4164924]
[1761783741058,0.72,194.37,194.33,37.56222039]
[1761783743046,0.72,194.37,194.34,2.03566471]
[1761783743269,0.72,194.37,194.33,37.56222039]
[1761783745300,0.1,194.44,194.35,2.03566471]
[1761783745463,0.69,194.36,194.35,20.592]
[1761783746132,2.72566471,194.36,194.33,20.592]
[1761783746384,0.69,194.36,194.33,20.592]
[1761783746558,2.03566471,194.37,194.33,20.592]
[1761783746559,0.69,194.35,194.33,20.592]
[1761783747764,0.69,194.35,194.33,25.7378691]
[1761783747982,0.69,194.38,194.34,2.03566471]
[1761783748178,0.69,194.37,194.35,2.03566471]
[1761783748681,0.69,194.37,194.34,9.78882769]
[1761783748885,0.69,194.37,194.33,20.592]
[1761783749062,0.69,194.37,194.33,25.73778634]
[1761783749460,0.69,194.37,194.34,2.03566471]
[1761783749863,0.69,194.37,194.33,27.77345105]
[1761783750182,0.69,194.37,194.33,22.62766471]
[1761783750382,0.69,194.37,194.33,27.77346983]
[1761783750898,0.69,194.37,194.33,25.73780512]
[1761783751905,5.83494942,194.37,194.33,20.592]
[1761783752082,7.87061413,194.37,194.33,20.592]
[1761783752295,0.69,194.36,194.33,20.592]
[1761783753179,5.83514265,194.36,194.33,20.592]
[1761783753609,0.69,194.35,194.33,20.592]
[1761783754074,0.69,194.37,194.33,27.77345328]
[1761783754476,0.69,194.39,194.35,2.03566471]
[1761783754676,0.69,194.38,194.35,2.03566471]
[1761783754877,0.69,194.38,194.34,11.8244924]
[1761783755398,0.69,194.38,194.35,5.14535631]
[1761783755984,0.69,194.38,194.35,7.18102102]
[1761783757698,5.14350375,194.42,194.35,7.18102102]
[1761783757889,0.69,194.4,194.35,7.86102102]
[1761783758901,0.69,194.4,194.36,2.03566471]
[1761783759193,0.69,194.4,194.36,2.71566471]
[1761783759400,0.69,194.4,194.37,5.14482687]
[1761783759776,0.69,194.4,194.33,20.592]
[1761783759777,2.03566471,194.38,194.33,9.78882769]
[1761783759984,2.03566471,194.37,194.33,9.78882769]
[1761783760296,0.69,194.39,194.33,9.78882769]
[1761783760484,2.72566471,194.39,194.33,11.8244924]
[1761783760886,0.69,194.38,194.33,11.8244924]
[1761783761389,0.69,194.38,194.33,12.5044924]
[1761783761602,0.69,194.38,194.33,16.97033143]
[1761783762192,0.69,194.38,194.33,17.65033143]
[1761783762901,0.69,194.38,194.34,2.03566471]
[1761783763302,0.69,194.38,194.34,7.18106598]
[1761783763877,7.87024602,194.38,194.33,9.78882769]
[1761783764076,5.83458131,194.38,194.33,9.78882769]
[1761783764285,2.72566471,194.37,194.33,9.78882769]
[1761783764504,2.72566471,194.36,194.32,20.592]
[1761783764699,0.69,194.36,194.32,20.592]
[1761783764906,2.72566471,194.35,194.32,20.592]
[1761783765107,0.69,194.35,194.32,20.592]
[1761783766112,0.69,194.35,194.32,25.73806304]
[1761783766702,2.72566471,194.35,194.32,20.592]
[1761783767009,0.69,194.35,194.32,25.73809908]
[1761783767592,0.69,194.35,194.32,20.592]
[1761783768882,5.83543416,194.35,194.31,5.14637107]
[1761783769090,7.87109887,194.35,194.31,5.14637107]
[1761783769403,0.69,194.34,194.31,5.14637107]
[1761783769900,0.69,194.34,194.3,14.93550808]
[1761783770101,2.72566471,194.34,194.3,14.93550808]
[1761783770303,0.69,194.34,194.3,16.97117279]
[1761783770513,0.69,194.34,194.31,2.03566471]
[1761783771084,0.69,194.34,194.3,17.65117279]
[1761783772880,0.69,194.34,194.3,16.97117279]
[1761783773086,0.69,194.34,194.3,17.68117279]
[1761783773987,7.18063435,194.37,194.31,2.03566471]
[1761783774215,2.03566471,194.33,194.27,2.03566471]
[1761783774511,2.03566471,194.31,194.26,9.78882769]
[1761783774685,2.03566471,194.31,194.25,22.62766471]
[1761783774881,2.74566471,194.3,194.25,9.78882769]
[1761783775185,2.74566471,194.3,194.25,30.38082769]
[1761783775515,0.71,194.29,194.25,35.52875647]
[1761783775814,0.71,194.29,194.26,2.03566471]
[1761783776012,0.71,194.29,194.26,22.62766471]
[1761783776798,0.71,194.29,194.26,20.592]
[1761783777290,0.71,194.29,194.26,22.62766471]
[1761783777606,0.71,194.29,194.26,25.73957623]
[1761783778398,0.71,194.29,194.26,20.592]
[1761783778595,2.74566471,194.29,194.26,20.592]
[1761783778994,0.71,194.28,194.26,20.592]
[1761783780827,0.71,194.28,194.22,9.78882769]
[1761783780828,2.03566471,194.27,194.22,9.78882769]
[1761783781211,0.71,194.26,194.22,11.8244924]
[1761783781394,0.71,194.26,194.22,13.68464707]
[1761783781718,0.71,194.26,194.23,3.18581938]
[1761783781909,0.71,194.26,194.22,13.68464707]
[1761783782321,0.71,194.26,194.22,18.83325079]
[1761783782520,3.89581938,194.26,194.2,9.47469507]
[1761783782707,3.89581938,194.26,194.19,34.17537781]
[1761783782708,9.04358242,194.26,194.19,25.62757746]
[1761783782909,3.18581938,194.21,194.18,0.2]
[1761783783113,3.18581938,194.2,194.18,0.2]
[1761783783600,38.60911339,194.26,194.18,0.2]
[1761783783601,3.89581938,194.19,194.18,0.2]
[1761783783801,0.71,194.19,194.18,0.2]
[1761783784105,3.89581938,194.19,194.18,0.2]
[1761783787322,3.18581938,194.2,194.18,0.2]
[1761783787528,0.71,194.19,194.18,0.2]
[1761783791910,102.1,194.24,194.18,9.24557274]
[1761783791911,0.71,194.23,194.18,9.24557274]
[1761783792403,3.89581938,194.23,194.18,6.05975336]
[1761783792619,3.18581938,194.22,194.18,5.34975336]
[1761783792908,0.69,194.22,194.18,9.25557274]
[1761783795111,3.18581938,194.19,194.18,0.2]
[1761783795638,3.87581938,194.19,194.18,0.2]
[1761783795808,0.69,194.19,194.18,0.2]
[1761783797507,9.02541513,194.19,194.18,0.2]
[1761783798140,5.83959575,194.19,194.18,0.2]
[1761783798441,9.02541513,194.19,194.18,0.2]
[1761783798811,3.87581938,194.19,194.18,0.2]
[1761783803049,0.69,194.19,194.18,0.2]
[1761783803347,9.02541513,194.19,194.18,0.2]
[1761783803919,105.28581938,194.24,194.18,9.20561628]
[1761783804125,0.66,194.26,194.21,3.18581938]
[1761783804426,5.80782353,194.26,194.21,3.18581938]
[1761783804823,0.66,194.25,194.21,3.18581938]
[1761783805127,8.99323452,194.28,194.23,3.18581938]
[1761783805758,0.66,194.28,194.24,3.85581938]
[1761783806149,0.66,194.28,194.23,5.1484622]
[1761783806457,5.80724148,194.28,194.23,9.00428158]
[1761783806937,0.66,194.28,194.23,9.00428158]
[1761783807255,114.96457118,194.34,194.23,9.00428158]
[1761783807256,3.18581938,194.33,194.27,3.18581938]
[1761783807538,8.9909643,194.36,194.3,3.18581938]
[1761783807925,8.9909643,194.36,194.3,12.97464707]
[1761783808124,0.66,194.38,194.32,3.18581938]
[1761783808522,3.84581938,194.38,194.32,3.18581938]
[1761783809037,8.99049172,194.38,194.32,3.18581938]
[1761783809231,8.99049172,194.38,194.32,3.85581938]
[1761783810141,3.84581938,194.37,194.32,3.85581938]
[1761783810741,3.84581938,194.37,194.32,0.67]
[1761783810938,3.84581938,194.37,194.32,5.81614852]
[1761783811148,3.18581938,194.33,194.27,0.51474751]
[1761783811317,25.77781937,194.28,194.18,0.2]
[1761783811514,53.18581938,194.3,194.18,0.2]
[1761783811515,3.18581938,194.19,194.18,0.2]
[1761783811748,3.18581938,194.22,194.18,0.87]
[1761783811926,3.18581938,194.21,194.18,0.87]
[1761783812123,0.66,194.25,194.18,0.87]
[1761783812348,3.18581938,194.22,194.18,0.87]
[1761783813138,8.33462147,194.22,194.18,0.87]
[1761783813348,12.74564372,194.22,194.18,0.87]
[1761783814659,7.59684163,194.21,194.18,0.2]
[1761783814839,8.25684163,194.21,194.18,0.2]
[1761783815025,8.25684163,194.21,194.18,0.87]
[1761783815026,7.59684163,194.21,194.18,0.87]
[1761783816162,12.74593191,194.21,194.18,0.2]
[1761783816459,0.66,194.28,194.2,9.78882769]
[1761783816635,7.59684163,194.29,194.23,7.59684163]
[1761783816837,102.1,194.36,194.24,0.67]
[1761783816838,12.7435368,194.3,194.24,0.67]
[1761783817041,12.7435368,194.3,194.24,8.26684163]
[1761783817240,8.25684163,194.29,194.24,8.26684163]
[1761783817928,7.59684163,194.27,194.21,7.59684163]
[1761783818132,7.59684163,194.26,194.2,18.05566932]
[1761783818334,7.59684163,194.26,194.2,38.68348907]
[1761783818745,7.59684163,194.26,194.21,7.59684163]
[1761783819366,8.25684163,194.26,194.21,13.41590379]
[1761783819536,0.66,194.26,194.21,13.41590379]
[1761783819730,5.80782407,194.26,194.21,13.41590379]
[1761783820564,12.7443499,194.27,194.22,0.67]
[1761783820733,7.59684163,194.27,194.22,8.26684163]
[1761783821059,13.40432299,194.27,194.22,8.26684163]
[1761783821432,0.66,194.26,194.2,31.08679581]
[1761783821632,0.66,194.26,194.22,7.59684163]
[1761783822647,5.80787063,194.26,194.22,7.59684163]
[1761783823367,0.66,194.25,194.2,9.78882769]
[1761783823538,7.59684163,194.28,194.23,7.59684163]
[1761783823960,8.25684163,194.28,194.23,8.26684163]
[1761783824257,7.59684163,194.28,194.23,8.26684163]
[1761783824456,0.66,194.27,194.23,8.26684163]
[1761783824642,8.25684163,194.28,194.23,8.26684163]
[1761783824834,13.40406667,194.28,194.23,8.26684163]
[1761783825167,0.66,194.27,194.23,8.26684163]
[1761783825353,0.66,194.27,194.23,0.67]
[1761783825556,7.59684163,194.28,194.23,8.26684163]
[1761783825748,7.59684163,194.28,194.24,0.67]
[1761783825969,13.40405621,194.28,194.22,13.415417]
[1761783826470,8.25684163,194.32,194.26,12.74434157]
[1761783826630,0.66,194.32,194.27,7.59684163]
[1761783826834,0.66,194.31,194.27,0.67]
[1761783827075,0.66,194.31,194.26,12.74434157]
[1761783827361,0.66,194.31,194.26,13.41434157]
[1761783827662,0.66,194.31,194.27,0.67]
[1761783827837,7.59684163,194.32,194.27,0.67]
[1761783828041,5.8061966,194.32,194.27,8.26684163]
[1761783828244,0.66,194.31,194.27,8.26684163]
[1761783828658,0.66,194.31,194.27,0.67]
[1761783829963,13.40330407,194.31,194.26,12.74434157]
[1761783830158,13.40330407,194.31,194.26,13.41434157]
[1761783831547,7.59684163,194.3,194.26,0.67]
[1761783831871,13.40325813,194.31,194.26,13.41457291]
[1761783832445,8.25684163,194.3,194.25,9.78882769]
[1761783832657,7.59684163,194.29,194.25,9.78882769]
[1761783832856,8.25684163,194.29,194.25,9.78882769]
[1761783833968,7.59684163,194.29,194.24,21.32350594]
[1761783834167,8.25684163,194.28,194.23,12.74532801]
[1761783834669,8.25684163,194.28,194.23,13.44532801]
[1761783835342,3.84560452,194.28,194.23,9.0340909]
[1761783835738,0.66,194.27,194.23,9.0340909]
[1761783836271,3.18560452,194.28,194.24,0.7]
[1761783836564,3.84560452,194.28,194.24,0.7]
[1761783836746,8.33268558,194.29,194.24,0.7]
[1761783836947,8.99268558,194.29,194.24,5.84818179]
[1761783838548,3.84560452,194.29,194.24,5.84818179]
[1761783838988,8.99270923,194.29,194.24,5.84818179]
[1761783839770,0.66,194.28,194.24,5.84818179]
[1761783840371,3.84560452,194.28,194.23,5.14850496]
[1761783840589,0.66,194.28,194.24,0.7]
[1761783840761,3.84560452,194.3,194.25,3.18560452]
[1761783840965,3.18560452,194.29,194.24,3.88560452]
[1761783841289,102.1,194.35,194.28,5.14721021]
[1761783841290,0.66,194.33,194.28,5.14721021]
[1761783841446,0.66,194.33,194.28,8.33281473]
[1761783841649,20.592,194.37,194.28,8.33281473]
[1761783841650,0.66,194.38,194.31,3.18560452]
[1761783841874,3.84560452,194.38,194.32,3.88560452]
[1761783842061,3.18560452,194.37,194.32,0.7]
[1761783842377,3.18560452,194.36,194.31,3.18560452]
[1761783842561,3.18560452,194.32,194.28,5.14721021]
[1761783842877,3.18560452,194.31,194.28,5.14721021]
[1761783843382,2.03768131,194.33,194.29,0.7]
[1761783843550,2.03768131,194.34,194.29,2.73768131]
[1761783844073,2.03768131,194.36,194.3,2.73768131]
[1761783844454,2.69768131,194.36,194.3,2.73768131]
[1761783844657,5.14456219,194.38,194.31,0.7]
[1761783844876,2.69768131,194.37,194.31,21.292]
[1761783845079,2.03768131,194.36,194.31,23.32968131]
[1761783845291,0.66,194.37,194.33,5.14588586]
[1761783845292,2.69768131,194.37,194.33,5.14588586]
[1761783845475,2.69768131,194.37,194.31,9.78882769]
[1761783845660,2.03768131,194.36,194.31,12.526509]
[1761783845861,5.14456219,194.38,194.32,0.7]
[1761783846154,2.03768131,194.37,194.32,2.73768131]
[1761783846559,2.03768131,194.37,194.33,0.7]
[1761783846775,2.69768131,194.37,194.33,0.7]
[1761783847083,0.66,194.37,194.33,0.7]
[1761783847386,2.69768131,194.37,194.33,0.7]
[1761783847885,5.8048404,194.37,194.32,2.03768131]
[1761783848059,7.84252171,194.37,194.32,2.73768131]
[1761783848255,2.69768131,194.37,194.32,7.18375619]
[1761783848458,2.03768131,194.38,194.33,0.7]
[1761783848656,5.80433011,194.39,194.33,2.73768131]
[1761783848657,0.66,194.39,194.33,2.73768131]
[1761783848871,2.03768131,194.4,194.34,2.03768131]
[1761783849069,2.03768131,194.4,194.34,2.73768131]
[1761783849367,2.03768131,194.4,194.35,5.84535631]
[1761783849575,2.69768131,194.41,194.36,0.7]
[1761783849862,2.03768131,194.41,194.36,0.7]
[1761783850061,2.69768131,194.41,194.36,0.7]
[1761783850469,0.66,194.41,194.36,0.7]
[1761783850680,2.69768131,194.41,194.36,0.7]
[1761783851208,2.69768131,194.41,194.36,5.84506009]
[1761783852578,0.66,194.41,194.36,5.84506009]
[1761783852878,2.69768131,194.41,194.37,0.65]
[1761783854481,2.70768131,194.4,194.36,5.14506009]
[1761783854684,2.70768131,194.4,194.35,2.03768131]
[1761783854880,2.70768131,194.4,194.36,0.65]
[1761783855788,7.18180396,194.4,194.35,5.14529331]
[1761783855991,7.18180396,194.4,194.31,9.93098926]
[1761783855992,2.03768131,194.36,194.31,10.43882769]
[1761783856368,2.70768131,194.36,194.32,0.65]
[1761783857988,7.85278514,194.36,194.32,0.65]
[1761783858769,2.70768131,194.35,194.3,38.75037723]
[1761783858969,2.70768131,194.35,194.3,26.38861629]
[1761783859580,2.70768131,194.34,194.3,21.242]
[1761783859789,0.67,194.34,194.3,21.242]
[1761783860378,7.18318894,194.35,194.31,0.65]
[1761783860581,7.85318894,194.35,194.31,0.65]
[1761783861306,5.81550763,194.35,194.31,0.65]
[1761783861471,7.85318894,194.35,194.31,0.65]
[1761783861880,0.67,194.34,194.3,20.592]
[1761783862095,0.67,194.34,194.29,7.18460205]
[1761783862390,2.70768131,194.34,194.29,5.81692074]
[1761783862778,2.70768131,194.34,194.3,0.67]
[1761783863276,12.86274218,194.36,194.3,0.67]
[1761783863277,0.71,194.36,194.3,0.67]
[1761783863478,2.74768131,194.35,194.3,2.70768131]
[1761783863797,7.18352943,194.34,194.3,0.67]
[1761783863969,7.89352943,194.34,194.3,0.67]
[1761783865286,2.03768131,194.35,194.3,5.81665149]
[1761783865685,0.71,194.34,194.3,0.67]
[1761783866505,2.03768131,194.35,194.3,5.81667568]
[1761783866801,2.74768131,194.35,194.3,5.81667568]
[1761783867000,2.74768131,194.35,194.31,0.67]
[1761783867185,5.85561597,194.35,194.31,0.67]
[1761783867380,7.89329728,194.35,194.31,0.67]
[1761783867781,7.18329728,194.35,194.31,0.67]
[1761783868097,7.89329728,194.35,194.31,0.67]
[1761783869570,0.71,194.34,194.31,0.67]
[1761783869774,2.03768131,194.38,194.32,2.03768131]
[1761783870002,2.74768131,194.38,194.32,2.03768131]
[1761783870205,0.71,194.37,194.33,0.67]
[1761783870588,2.74768131,194.37,194.33,0.67]
[1761783870800,2.74768131,194.37,194.33,5.81587526]
[1761783871193,0.71,194.37,194.33,5.81587526]
[1761783871603,7.18202651,194.39,194.34,0.67]
[1761783871803,5.1443452,194.39,194.34,2.70768131]
[1761783872001,109.28173166,194.4,194.34,2.70768131]
[1761783872201,0.71,194.39,194.34,2.70768131]
[1761783872715,2.03768131,194.37,194.32,0.67]
[1761783873023,0.1,194.44,194.4,20.592]
[1761783873191,0.1,194.44,194.42,2.03768131]
[1761783873395,0.1,194.44,194.43,2.03768131]
[1761783873697,0.1,194.44,194.43,11.826509]
[1761783873913,0.1,194.44,194.43,12.496509]
[1761783874116,135.6420967,194.56,194.47,20.592]
[1761783874117,0.1,194.56,194.47,20.592]
[1761783874495,0.81,194.56,194.51,2.03768131]
[1761783875000,5.94991219,194.56,194.51,2.70768131]
[1761783876514,5.94991219,194.56,194.47,33.44697514]
[1761783876515,0.71,194.55,194.49,20.592]
[1761783876814,5.14033103,194.54,194.48,20.592]
[1761783877291,0.71,194.53,194.48,20.592]
[1761783877492,0.71,194.53,194.48,21.262]
[1761783877702,5.14033103,194.54,194.49,0.67]
[1761783878415,5.85033103,194.54,194.49,0.67]
[1761783878714,0.71,194.53,194.49,0.67]
[1761783878914,5.85069677,194.53,194.49,0.67]
[1761783879412,0.71,194.52,194.48,20.592]
[1761783879617,2.74768131,194.52,194.48,20.592]
[1761783880011,2.03768131,194.49,194.42,2.70768131]
[1761783880201,2.03768131,194.47,194.42,2.70768131]
[1761783880406,2.03768131,194.47,194.44,20.592]
[1761783881017,7.88970229,194.48,194.43,21.262]
[1761783881239,7.88970229,194.48,194.43,5.81322204]
[1761783881420,7.88970229,194.48,194.43,5.14322204]
[1761783881610,7.88970229,194.48,194.43,26.40522204]
[1761783882408,2.03768131,194.47,194.43,26.40522204]
[1761783883421,2.03768131,194.47,194.43,21.262]
[1761783885001,2.74768131,194.47,194.43,21.262]
[1761783885632,2.03768131,194.47,194.43,21.262]
[1761783886131,2.03768131,194.47,194.44,0.67]
[1761783886801,7.88970229,194.48,194.44,0.67]
[1761783889228,2.03768131,194.47,194.44,0.67]
[1761783889928,2.03768131,194.45,194.41,0.67]
[1761783890109,2.03768131,194.45,194.41,9.78882769]
[1761783890310,2.74768131,194.45,194.41,10.45882769]
[1761783890517,0.71,194.48,194.42,0.67]
[1761783890820,2.03768131,194.46,194.4,7.18168558]
[1761783891024,2.03768131,194.45,194.4,7.85168558]
[1761783891426,2.03768131,194.45,194.41,0.67]
[1761783891629,2.74768131,194.45,194.41,5.81362233]
[1761783892133,2.03768131,194.44,194.39,2.70768131]
[1761783892317,2.74768131,194.44,194.39,2.70768131]
[1761783892518,2.74768131,194.44,194.39,2.03768131]
[1761783892720,2.74768131,194.44,194.4,0.72]
[1761783892921,0.71,194.44,194.4,0.72]
[1761783894437,0.71,194.44,194.4,5.86396745]
[1761783895024,2.03768131,194.45,194.41,0.72]
[1761783895222,2.69768131,194.45,194.41,0.72]
[1761783895420,5.14224214,194.47,194.41,12.546509]
[1761783895628,7.17992345,194.47,194.41,12.546509]
[1761783895830,7.17992345,194.47,194.42,0.72]
[1761783896036,2.03768131,194.47,194.42,0.72]
[1761783896217,7.83986954,194.47,194.42,0.72]
[1761783896426,0.66,194.51,194.45,2.03768131]
[1761783896620,2.03768131,194.5,194.44,2.03768131]
[1761783896824,2.03768131,194.49,194.43,11.826509]
[1761783897023,2.03768131,194.49,194.44,5.14297469]
[1761783897220,2.03768131,194.49,194.44,7.900656]
[1761783897426,2.03768131,194.49,194.45,0.72]
[1761783898514,2.03768131,194.49,194.45,5.86254991]
[1761783899037,2.03768131,194.49,194.45,5.14254991]
[1761783899038,0.66,194.48,194.45,5.14254991]
[1761783899237,2.03768131,194.49,194.45,5.86254991]
[1761783899438,2.03768131,194.5,194.46,0.72]
[1761783899912,2.69768131,194.5,194.46,0.72]
[1761783901016,2.03768131,194.47,194.42,20.592]
[1761783901216,2.03768131,194.44,194.42,20.592]
[1761783901538,2.03768131,194.45,194.42,20.592]
[1761783901743,2.03768131,194.44,194.4,5.14399509]
[1761783901920,2.03768131,194.43,194.39,5.86419078]
[1761783902126,20.03262264,194.5,194.39,7.90187209]
[1761783902127,0.66,194.48,194.39,7.90187209]
[1761783902325,0.66,194.48,194.4,0.72]
[1761783902629,0.66,194.48,194.4,2.75768131]
[1761783902841,2.69768131,194.48,194.42,16.97001275]
[1761783903043,0.66,194.51,194.46,2.03768131]
[1761783903243,2.69768131,194.53,194.47,2.75768131]
[1761783903629,0.66,194.53,194.47,2.03768131]
[1761783903948,2.69768131,194.55,194.5,2.03768131]
[1761783904242,2.03768131,194.53,194.48,2.75768131]
[1761783904440,0.1,194.56,194.46,11.826509]
[1761783904441,2.69768131,194.52,194.46,11.826509]
[1761783904647,2.03768131,194.5,194.45,20.592]
[1761783904842,2.03768131,194.46,194.41,5.86375293]
[1761783905016,2.03768131,194.46,194.42,20.592]
[1761783905228,2.69768131,194.45,194.41,9.78882769]
[1761783905538,3.18009937,194.44,194.4,9.78882769]
[1761783905846,3.18009937,194.45,194.41,0.72]
[1761783906439,5.8027366,194.45,194.41,0.72]
[1761783906648,8.98283597,194.45,194.4,30.38082769]
[1761783906832,3.84009937,194.45,194.41,0.72]
[1761783907025,3.18009937,194.45,194.41,0.72]
[1761783907352,7.57917502,194.45,194.41,0.72]
[1761783908059,0.66,194.45,194.41,0.72]
[1761783908240,13.38190128,194.45,194.41,0.72]
[1761783909154,7.57917502,194.46,194.41,5.86374398]
[1761783909625,7.57917502,194.46,194.4,37.96000271]
[1761783909826,8.23917502,194.45,194.4,43.82402476]
[1761783910245,25.70429775,194.52,194.42,7.57917502]
[1761783910246,7.57917502,194.47,194.42,7.57917502]
[1761783910447,8.23917502,194.47,194.43,0.72]
[1761783910651,8.23917502,194.47,194.42,8.29917502]
[1761783910947,7.57917502,194.47,194.42,8.29917502]
[1761783911155,7.57917502,194.47,194.4,35.52484974]
[1761783911156,7.57917502,194.44,194.4,20.592]
[1761783911751,8.23917502,194.44,194.4,20.592]
[1761783912056,7.57917502,194.45,194.41,0.72]
[1761783912842,8.24917502,194.45,194.41,0.72]
[1761783913051,8.24917502,194.45,194.41,5.86374176]
[1761783913231,7.57917502,194.45,194.41,0.72]
[1761783913558,8.24917502,194.45,194.41,0.72]
[1761783913745,5.14257126,194.46,194.41,0.72]
[1761783913943,7.57917502,194.45,194.41,0.72]
[1761783914345,7.57917502,194.45,194.41,5.86366575]
[1761783914551,0.67,194.44,194.4,33.3151846]
[1761783914753,0.67,194.44,194.4,26.45600958]
[1761783914933,8.24917502,194.44,194.4,25.73600958]
[1761783915254,5.14274086,194.45,194.4,26.45600958]
[1761783915430,8.24917502,194.44,194.4,26.45600958]
[1761783916440,7.57917502,194.41,194.37,4.32557746]
[1761783916639,7.57917502,194.4,194.36,4.32557746]
[1761783916844,0.67,194.42,194.36,5.04557746]
[1761783917054,7.57917502,194.4,194.36,4.32557746]
[1761783917553,8.24917502,194.4,194.36,9.47059568]
[1761783917743,13.39335665,194.4,194.36,5.04557746]
[1761783917938,7.57917502,194.4,194.36,5.14503691]
[1761783918146,7.57917502,194.41,194.37,0.72]
[1761783918537,8.24917502,194.41,194.37,0.72]
[1761783918937,8.24917502,194.41,194.35,14.11440515]
[1761783918938,7.57917502,194.39,194.35,14.11440515]
[1761783919265,8.24917502,194.41,194.35,14.9341201]
[1761783919438,7.57917502,194.4,194.35,10.50882769]
[1761783919767,7.57917502,194.4,194.35,23.23335205]